[Event "Early-Titled-Tuesday-Blitz-January-16-2024"]
[Site "Chess.com"]
[Date "2024.01.16"]
[Round "9"]
[White "SantoBlue"]
[Black "Rud_Makarian"]
[Result "1-0"]
[WhiteElo "2970"]
[BlackElo "3035"]
[TimeControl "180+1"]
[EndTime "9:47:57 PST"]
[Termination "SantoBlue won on time"]

1. e4 {[%clk 0:03:00.9]} 1... c5 {[%clk 0:03:00.6]} 2. Nc3 {[%clk 0:02:57.4]}
2... Nc6 {[%clk 0:03:00.6]} 3. Bb5 {[%clk 0:02:57.1]} 3... e6 {[%clk 0:03:01.1]}
4. Bxc6 {[%clk 0:02:56.5]} 4... bxc6 {[%clk 0:03:02]} 5. d3 {[%clk 0:02:56.5]}
5... d5 {[%clk 0:03:02]} 6. Nf3 {[%clk 0:02:53.3]} 6... Nf6 {[%clk 0:03:02.5]}
7. O-O {[%clk 0:02:53.1]} 7... Be7 {[%clk 0:03:01.7]} 8. Re1 {[%clk 0:02:53.2]}
8... O-O {[%clk 0:03:02.1]} 9. Qe2 {[%clk 0:02:47.9]} 9... c4 {[%clk 0:02:57.5]}
10. dxc4 {[%clk 0:02:38.7]} 10... Ba6 {[%clk 0:02:57.8]} 11. Ne5 {[%clk
0:02:32.8]} 11... Rc8 {[%clk 0:02:32.3]} 12. Bf4 {[%clk 0:02:08.5]} 12... Bb4
{[%clk 0:02:04.3]} 13. Bg5 {[%clk 0:01:59.1]} 13... Qc7 {[%clk 0:01:29.9]} 14.
exd5 {[%clk 0:01:43.6]} 14... Nxd5 {[%clk 0:01:18.7]} 15. Qg4 {[%clk 0:01:20.7]}
15... f5 {[%clk 0:01:07.3]} 16. Qg3 {[%clk 0:01:16.9]} 16... Nxc3 {[%clk
0:00:44.7]} 17. bxc3 {[%clk 0:01:16.9]} 17... Bd6 {[%clk 0:00:44.4]} 18. Bf4
{[%clk 0:01:01.5]} 18... Bxc4 {[%clk 0:00:32.7]} 19. Rad1 {[%clk 0:00:59.5]}
19... Bxe5 {[%clk 0:00:32.8]} 20. Bxe5 {[%clk 0:00:58.5]} 20... Qf7 {[%clk
0:00:33.4]} 21. Rd4 {[%clk 0:00:56.7]} 21... Bd5 {[%clk 0:00:17.4]} 22. h4
{[%clk 0:00:30.6]} 22... c5 {[%clk 0:00:16.5]} 23. Rd2 {[%clk 0:00:31]} 23...
Bxa2 {[%clk 0:00:14.8]} 24. Red1 {[%clk 0:00:29.1]} 24... Qg6 {[%clk 0:00:12.5]}
25. Qxg6 {[%clk 0:00:24.7]} 25... hxg6 {[%clk 0:00:13.4]} 26. Rd7 {[%clk
0:00:23.9]} 26... Rf7 {[%clk 0:00:13.7]} 27. Rxf7 {[%clk 0:00:24.2]} 27... Kxf7
{[%clk 0:00:14.2]} 28. Rd7+ {[%clk 0:00:21]} 28... Ke8 {[%clk 0:00:14.4]} 29.
Rxa7 {[%clk 0:00:21.1]} 29... Bd5 {[%clk 0:00:07.8]} 30. Rxg7 {[%clk 0:00:21.5]}
30... Ra8 {[%clk 0:00:08.4]} 31. Rxg6 {[%clk 0:00:20.1]} 31... Ra1+ {[%clk
0:00:04.9]} 32. Kh2 {[%clk 0:00:20.4]} 32... Re1 {[%clk 0:00:03.7]} 33. f4
{[%clk 0:00:17.6]} 33... Kf7 {[%clk 0:00:01.5]} 34. h5 {[%clk 0:00:18.3]} 1-0

[Event "Early-Titled-Tuesday-Blitz-January-16-2024"]
[Site "Chess.com"]
[Date "2024.01.16"]
[Round "9"]
[White "Mikasinski"]
[Black "Byniolus"]
[Result "0-1"]
[WhiteElo "2620"]
[BlackElo "2760"]
[TimeControl "180+1"]
[EndTime "9:47:57 PST"]
[Termination "Byniolus won by resignation"]

1. e4 {[%clk 0:03:00.9]} 1... d6 {[%clk 0:02:58.8]} 2. d4 {[%clk 0:03:00.9]}
2... Nf6 {[%clk 0:02:59.2]} 3. Nc3 {[%clk 0:03:01]} 3... c6 {[%clk 0:02:59.7]}
4. f4 {[%clk 0:02:59.6]} 4... Qb6 {[%clk 0:02:59.5]} 5. Nf3 {[%clk 0:02:54.4]}
5... Bg4 {[%clk 0:02:58.9]} 6. e5 {[%clk 0:02:53.1]} 6... Nd5 {[%clk 0:02:58.8]}
7. Nxd5 {[%clk 0:02:52.8]} 7... cxd5 {[%clk 0:02:59.7]} 8. c3 {[%clk 0:02:53.2]}
8... e6 {[%clk 0:02:58.6]} 9. Be2 {[%clk 0:02:43]} 9... Nc6 {[%clk 0:02:58.1]}
10. Qd2 {[%clk 0:02:37.3]} 10... Be7 {[%clk 0:02:54.6]} 11. Qe3 {[%clk 0:02:36]}
11... O-O-O {[%clk 0:02:47.5]} 12. O-O {[%clk 0:02:34.2]} 12... Kb8 {[%clk
0:02:47.3]} 13. b4 {[%clk 0:02:27.5]} 13... Qc7 {[%clk 0:02:47.1]} 14. Bd2
{[%clk 0:02:25.5]} 14... Rc8 {[%clk 0:02:41.9]} 15. a4 {[%clk 0:02:24.1]} 15...
f6 {[%clk 0:02:32.2]} 16. exd6 {[%clk 0:02:17.8]} 16... Bxd6 {[%clk 0:02:29.9]}
17. h3 {[%clk 0:02:14.5]} 17... Bf5 {[%clk 0:02:27.1]} 18. a5 {[%clk 0:02:12.3]}
18... Be4 {[%clk 0:02:23.4]} 19. Ne1 {[%clk 0:02:02.8]} 19... g5 {[%clk
0:02:01.4]} 20. fxg5 {[%clk 0:01:51.1]} 20... fxg5 {[%clk 0:02:02.3]} 21. Bg4
{[%clk 0:01:44.3]} 21... h5 {[%clk 0:01:40.9]} 22. Bxe6 {[%clk 0:01:42.1]} 22...
Rce8 {[%clk 0:01:40.6]} 23. Rf7 {[%clk 0:01:06.8]} 23... Bh2+ {[%clk 0:01:26.6]}
24. Kh1 {[%clk 0:01:01.7]} 24... Qd6 {[%clk 0:01:25.5]} 25. Qxg5 {[%clk
0:00:50.9]} 25... Rxe6 {[%clk 0:01:04.5]} 26. Qg7 {[%clk 0:00:48.2]} 26... Rhe8
{[%clk 0:00:21.9]} 27. Rxb7+ {[%clk 0:00:38.8]} 27... Ka8 {[%clk 0:00:22.6]} 28.
b5 {[%clk 0:00:36.8]} 28... Ne7 {[%clk 0:00:19.5]} 29. a6 {[%clk 0:00:29]} 29...
Qg3 {[%clk 0:00:14.1]} 30. Qf7 {[%clk 0:00:21]} 30... Rg8 {[%clk 0:00:11.9]} 31.
Qf1 {[%clk 0:00:07]} 31... Qxh3 {[%clk 0:00:11]} 32. Bg5 {[%clk 0:00:05.7]}
32... Bg3+ {[%clk 0:00:08.9]} 0-1

[Event "Early-Titled-Tuesday-Blitz-January-16-2024"]
[Site "Chess.com"]
[Date "2024.01.16"]
[Round "9"]
[White "jcibarra"]
[Black "hakanazeri2"]
[Result "1-0"]
[WhiteElo "2866"]
[BlackElo "2561"]
[TimeControl "180+1"]
[EndTime "9:48:00 PST"]
[Termination "jcibarra won on time"]

1. e4 {[%clk 0:03:00.9]} 1... c5 {[%clk 0:02:59.3]} 2. Nf3 {[%clk 0:03:01]} 2...
Nc6 {[%clk 0:02:59.2]} 3. Nc3 {[%clk 0:03:00.8]} 3... Nf6 {[%clk 0:02:57.2]} 4.
d4 {[%clk 0:03:01]} 4... cxd4 {[%clk 0:02:57.4]} 5. Nxd4 {[%clk 0:03:01.9]} 5...
e5 {[%clk 0:02:58]} 6. Ndb5 {[%clk 0:03:02.2]} 6... d6 {[%clk 0:02:58.4]} 7. Bg5
{[%clk 0:03:02.8]} 7... a6 {[%clk 0:02:58.7]} 8. Na3 {[%clk 0:03:03.4]} 8... b5
{[%clk 0:02:59.2]} 9. Bxf6 {[%clk 0:03:03.9]} 9... gxf6 {[%clk 0:02:59]} 10. Nd5
{[%clk 0:03:04.6]} 10... f5 {[%clk 0:02:57.5]} 11. g3 {[%clk 0:03:04.8]} 11...
fxe4 {[%clk 0:02:51.4]} 12. Bg2 {[%clk 0:03:04.9]} 12... Bf5 {[%clk 0:02:46]}
13. f3 {[%clk 0:03:05]} 13... exf3 {[%clk 0:02:25.6]} 14. Qxf3 {[%clk
0:03:04.8]} 14... Nd4 {[%clk 0:02:23]} 15. Qf2 {[%clk 0:02:51.7]} 15... b4
{[%clk 0:02:12.2]} 16. c3 {[%clk 0:02:42.6]} 16... bxa3 {[%clk 0:02:04.8]} 17.
O-O {[%clk 0:02:39.4]} 17... axb2 {[%clk 0:01:48.4]} 18. Qxb2 {[%clk 0:02:36.3]}
18... Nc2 {[%clk 0:01:09.1]} 19. Rxf5 {[%clk 0:02:23.8]} 19... Nxa1 {[%clk
0:01:01]} 20. Nf6+ {[%clk 0:01:57.8]} 20... Ke7 {[%clk 0:00:59.4]} 21. Qb7+
{[%clk 0:01:51.9]} 21... Ke6 {[%clk 0:00:57.5]} 22. Bh3 {[%clk 0:01:30.3]} 22...
d5 {[%clk 0:00:39.9]} 23. Qc6+ {[%clk 0:00:57]} 23... Bd6 {[%clk 0:00:36.8]} 24.
Nxd5 {[%clk 0:00:37.2]} 24... e4 {[%clk 0:00:20]} 25. Nf4+ {[%clk 0:00:17.2]}
25... Ke7 {[%clk 0:00:19]} 26. Qxe4+ {[%clk 0:00:16.6]} 26... Kf8 {[%clk
0:00:07.9]} 27. Ne6+ {[%clk 0:00:12.9]} 27... Kg8 {[%clk 0:00:08.3]} 28. Nxd8
{[%clk 0:00:12.8]} 28... Rxd8 {[%clk 0:00:08]} 29. Qc4 {[%clk 0:00:07.1]} 1-0

[Event "Early-Titled-Tuesday-Blitz-January-16-2024"]
[Site "Chess.com"]
[Date "2024.01.16"]
[Round "9"]
[White "Dinosaurio_1975"]
[Black "Sychev_Klementy"]
[Result "0-1"]
[WhiteElo "2631"]
[BlackElo "2778"]
[TimeControl "180+1"]
[EndTime "9:48:03 PST"]
[Termination "Sychev_Klementy won by resignation"]

1. e4 {[%clk 0:03:00.9]} 1... e5 {[%clk 0:02:59.6]} 2. Nf3 {[%clk 0:03:00.5]}
2... Nc6 {[%clk 0:03:00.1]} 3. Bc4 {[%clk 0:02:59.3]} 3... Nf6 {[%clk
0:02:59.4]} 4. d3 {[%clk 0:02:58.8]} 4... Bc5 {[%clk 0:02:59.1]} 5. Be3 {[%clk
0:02:59]} 5... Bb6 {[%clk 0:02:58.3]} 6. O-O {[%clk 0:02:58.6]} 6... O-O {[%clk
0:02:56.6]} 7. a4 {[%clk 0:02:59]} 7... d5 {[%clk 0:02:54.3]} 8. exd5 {[%clk
0:02:58]} 8... Nxd5 {[%clk 0:02:55.2]} 9. Re1 {[%clk 0:02:48]} 9... Nxe3 {[%clk
0:02:24.9]} 10. fxe3 {[%clk 0:02:46.2]} 10... e4 {[%clk 0:02:25.5]} 11. Nfd2
{[%clk 0:02:25.9]} 11... Ne5 {[%clk 0:02:07.3]} 12. d4 {[%clk 0:01:45.4]} 12...
Ng4 {[%clk 0:02:02.7]} 13. Nf1 {[%clk 0:01:15]} 13... c5 {[%clk 0:01:31]} 14. c3
{[%clk 0:01:10.7]} 14... Qh4 {[%clk 0:01:24]} 15. Qe2 {[%clk 0:01:01.2]} 15...
Bc7 {[%clk 0:00:59.3]} 16. h3 {[%clk 0:01:00.6]} 16... Nh6 {[%clk 0:00:52.6]}
17. Qf2 {[%clk 0:01:00.4]} 17... Qg5 {[%clk 0:00:52.6]} 18. Kh1 {[%clk
0:00:28.1]} 18... Nf5 {[%clk 0:00:51.1]} 19. Nbd2 {[%clk 0:00:26.3]} 19... Ng3+
{[%clk 0:00:46.2]} 20. Nxg3 {[%clk 0:00:11.8]} 20... Bxg3 {[%clk 0:00:46.3]} 21.
Nxe4 {[%clk 0:00:12.4]} 21... Bxf2 {[%clk 0:00:46.6]} 22. Nxg5 {[%clk
0:00:12.8]} 22... Bxe1 {[%clk 0:00:46.8]} 23. Rxe1 {[%clk 0:00:13.6]} 23... Bd7
{[%clk 0:00:47.2]} 24. dxc5 {[%clk 0:00:13.5]} 24... h6 {[%clk 0:00:40.2]} 25.
Ne4 {[%clk 0:00:11.5]} 25... Bxa4 {[%clk 0:00:40.1]} 26. Nd6 {[%clk 0:00:11.7]}
26... b6 {[%clk 0:00:33.1]} 27. b4 {[%clk 0:00:10.8]} 27... bxc5 {[%clk
0:00:32.6]} 28. bxc5 {[%clk 0:00:11.7]} 28... Bc6 {[%clk 0:00:27.9]} 29. Rf1
{[%clk 0:00:12]} 29... a5 {[%clk 0:00:26.1]} 30. Nxf7 {[%clk 0:00:12.5]} 30...
Kh7 {[%clk 0:00:25.3]} 31. Bd3+ {[%clk 0:00:11.5]} 31... g6 {[%clk 0:00:25.2]}
32. Rf6 {[%clk 0:00:11.4]} 32... Bd5 {[%clk 0:00:22.3]} 33. Rxg6 {[%clk
0:00:07.2]} 33... Bxf7 {[%clk 0:00:19]} 34. Rb6+ {[%clk 0:00:02.4]} 34... Kg7
{[%clk 0:00:18.8]} 35. c6 {[%clk 0:00:03.3]} 35... a4 {[%clk 0:00:18.7]} 36. c7
{[%clk 0:00:03.6]} 36... a3 {[%clk 0:00:19]} 37. Rb1 {[%clk 0:00:02.9]} 37... a2
{[%clk 0:00:19.1]} 38. Ra1 {[%clk 0:00:03.8]} 38... Rfc8 {[%clk 0:00:19.2]} 0-1

[Event "Early-Titled-Tuesday-Blitz-January-16-2024"]
[Site "Chess.com"]
[Date "2024.01.16"]
[Round "9"]
[White "jhedigm"]
[Black "Schachmalanders"]
[Result "0-1"]
[WhiteElo "2571"]
[BlackElo "2479"]
[TimeControl "180+1"]
[EndTime "9:48:03 PST"]
[Termination "Schachmalanders won by resignation"]

1. d4 {[%clk 0:03:00.9]} 1... d5 {[%clk 0:02:58.6]} 2. c4 {[%clk 0:02:59.5]}
2... e6 {[%clk 0:02:59.2]} 3. Nc3 {[%clk 0:02:59.6]} 3... c6 {[%clk 0:02:59.3]}
4. e3 {[%clk 0:02:56.9]} 4... f5 {[%clk 0:02:58]} 5. Qc2 {[%clk 0:02:54.6]} 5...
Nf6 {[%clk 0:02:58]} 6. Bd3 {[%clk 0:02:54.8]} 6... Bd6 {[%clk 0:02:57.7]} 7.
Nge2 {[%clk 0:02:55.2]} 7... O-O {[%clk 0:02:57.8]} 8. b3 {[%clk 0:02:55.6]}
8... Ne4 {[%clk 0:02:57.6]} 9. Bb2 {[%clk 0:02:54.7]} 9... Qh4 {[%clk
0:02:54.1]} 10. g3 {[%clk 0:02:54.4]} 10... Qh3 {[%clk 0:02:53.8]} 11. Nf4
{[%clk 0:02:13]} 11... Bxf4 {[%clk 0:02:52.2]} 12. exf4 {[%clk 0:02:13.2]} 12...
Qg2 {[%clk 0:02:47.3]} 13. O-O-O {[%clk 0:02:12.8]} 13... Nxf2 {[%clk
0:02:42.3]} 14. Rhf1 {[%clk 0:02:05.7]} 14... Nxd3+ {[%clk 0:02:40.7]} 15. Qxd3
{[%clk 0:02:06.1]} 15... Qh3 {[%clk 0:02:34.2]} 16. Qf3 {[%clk 0:01:59]} 16...
Nd7 {[%clk 0:02:29.8]} 17. Rde1 {[%clk 0:01:58.3]} 17... Nf6 {[%clk 0:02:29.4]}
18. Nd1 {[%clk 0:01:56.9]} 18... Ne4 {[%clk 0:02:20.5]} 19. Re2 {[%clk
0:01:52.4]} 19... b6 {[%clk 0:02:15.1]} 20. Ne3 {[%clk 0:01:52]} 20... a5 {[%clk
0:02:12.9]} 21. Rg2 {[%clk 0:01:49.2]} 21... a4 {[%clk 0:02:10.2]} 22. Rfg1
{[%clk 0:01:49]} 22... axb3 {[%clk 0:02:08.2]} 23. axb3 {[%clk 0:01:49.9]} 23...
Bd7 {[%clk 0:02:04.4]} 24. Qe2 {[%clk 0:01:49.7]} 24... h5 {[%clk 0:01:51.1]}
25. Kb1 {[%clk 0:01:36.9]} 25... Ra5 {[%clk 0:01:32.1]} 26. Qe1 {[%clk
0:01:31.8]} 26... Rfa8 {[%clk 0:01:30.3]} 27. Rc2 {[%clk 0:01:08.3]} 27... Nf6
{[%clk 0:01:07.4]} 28. cxd5 {[%clk 0:00:59]} 28... Nxd5 {[%clk 0:00:58.6]} 29.
Nc4 {[%clk 0:00:57.4]} 29... Rb5 {[%clk 0:00:54.5]} 30. Ne5 {[%clk 0:00:51.1]}
30... Be8 {[%clk 0:00:41.9]} 31. Nxc6 {[%clk 0:00:47.6]} 31... Bf7 {[%clk
0:00:36.5]} 32. Ne5 {[%clk 0:00:33.8]} 32... Rxb3 {[%clk 0:00:35.7]} 33. Nxf7
{[%clk 0:00:18.8]} 33... Kxf7 {[%clk 0:00:36.6]} 34. Qe2 {[%clk 0:00:16.3]}
34... Ra4 {[%clk 0:00:27]} 35. Re1 {[%clk 0:00:15.8]} 35... Re3 {[%clk
0:00:24.4]} 36. Qd2 {[%clk 0:00:15.7]} 36... Rxe1+ {[%clk 0:00:23.2]} 37. Qxe1
{[%clk 0:00:16.1]} 37... Qg4 {[%clk 0:00:22.3]} 38. Re2 {[%clk 0:00:16.3]} 38...
Qf3 {[%clk 0:00:21.4]} 39. Rxe6 {[%clk 0:00:15]} 39... Qd3+ {[%clk 0:00:21.7]}
40. Kc1 {[%clk 0:00:15.4]} 40... Rc4+ {[%clk 0:00:21.7]} 41. Bc3 {[%clk
0:00:14.5]} 41... Rxc3+ {[%clk 0:00:22]} 42. Kb2 {[%clk 0:00:14.7]} 42... Rc2+
{[%clk 0:00:21.9]} 0-1

[Event "Early-Titled-Tuesday-Blitz-January-16-2024"]
[Site "Chess.com"]
[Date "2024.01.16"]
[Round "9"]
[White "profedechess93"]
[Black "PavelShkapenko"]
[Result "0-1"]
[WhiteElo "2638"]
[BlackElo "2778"]
[TimeControl "180+1"]
[EndTime "9:48:04 PST"]
[Termination "PavelShkapenko won by resignation"]

1. e4 {[%clk 0:03:00.9]} 1... e5 {[%clk 0:02:59.6]} 2. Nf3 {[%clk 0:03:00.7]}
2... Nc6 {[%clk 0:02:59.4]} 3. Bc4 {[%clk 0:03:00.8]} 3... d6 {[%clk 0:02:59]}
4. c3 {[%clk 0:03:00.9]} 4... f5 {[%clk 0:02:58.5]} 5. d3 {[%clk 0:02:58.1]}
5... f4 {[%clk 0:02:58.1]} 6. Qb3 {[%clk 0:02:52]} 6... Nh6 {[%clk 0:02:28.7]}
7. d4 {[%clk 0:02:50.1]} 7... Qf6 {[%clk 0:02:22.5]} 8. Na3 {[%clk 0:02:04.9]}
8... Be7 {[%clk 0:02:18.4]} 9. Nb5 {[%clk 0:02:02.9]} 9... Bd8 {[%clk
0:02:18.5]} 10. Bd5 {[%clk 0:01:46.1]} 10... Nf7 {[%clk 0:02:13.8]} 11. dxe5
{[%clk 0:01:43.5]} 11... dxe5 {[%clk 0:02:09.3]} 12. h4 {[%clk 0:01:42.9]} 12...
h6 {[%clk 0:02:07.1]} 13. h5 {[%clk 0:01:43.1]} 13... O-O {[%clk 0:01:59.4]} 14.
Nh4 {[%clk 0:01:33.1]} 14... Ne7 {[%clk 0:01:59.1]} 15. Bc4 {[%clk 0:00:55.8]}
15... c6 {[%clk 0:01:57.3]} 16. Na3 {[%clk 0:00:56.1]} 16... b5 {[%clk 0:01:57]}
17. Bd3 {[%clk 0:00:49.7]} 17... Be6 {[%clk 0:01:56.9]} 18. Qc2 {[%clk
0:00:49.9]} 18... Ng5 {[%clk 0:01:43.8]} 19. Bd2 {[%clk 0:00:48]} 19... Bg4
{[%clk 0:01:43]} 20. f3 {[%clk 0:00:36]} 20... Bxh5 {[%clk 0:01:43]} 21. O-O-O
{[%clk 0:00:35.1]} 21... Bf7 {[%clk 0:01:42.5]} 22. Kb1 {[%clk 0:00:34.7]} 22...
Rb8 {[%clk 0:01:30.6]} 23. Nf5 {[%clk 0:00:35.1]} 23... Bg6 {[%clk 0:01:24.8]}
24. Nxe7+ {[%clk 0:00:30.3]} 24... Bxe7 {[%clk 0:01:24.6]} 25. Be1 {[%clk
0:00:25.2]} 25... Ne6 {[%clk 0:01:22]} 26. Bf2 {[%clk 0:00:20.2]} 26... a5
{[%clk 0:01:21.7]} 27. Qe2 {[%clk 0:00:19.6]} 27... Bf7 {[%clk 0:01:17.9]} 28.
Nc2 {[%clk 0:00:19.2]} 28... Nc5 {[%clk 0:01:13.7]} 29. Bh4 {[%clk 0:00:18.3]}
29... Qe6 {[%clk 0:01:11]} 30. b3 {[%clk 0:00:18.3]} 30... Bxh4 {[%clk
0:01:09.1]} 31. Rxh4 {[%clk 0:00:18.1]} 31... Nxb3 {[%clk 0:01:06.3]} 32. axb3
{[%clk 0:00:17.9]} 32... Qxb3+ {[%clk 0:01:06.8]} 33. Kc1 {[%clk 0:00:18.8]}
33... Qxc3 {[%clk 0:01:07.1]} 34. Qd2 {[%clk 0:00:16.7]} 34... Qc5 {[%clk
0:00:57.2]} 35. g3 {[%clk 0:00:17.1]} 35... b4 {[%clk 0:00:56.3]} 36. Kb1 {[%clk
0:00:14.5]} 36... a4 {[%clk 0:00:47.5]} 37. gxf4 {[%clk 0:00:12.6]} 37... b3
{[%clk 0:00:47.5]} 38. Na1 {[%clk 0:00:11]} 38... a3 {[%clk 0:00:46.8]} 39. Rc1
{[%clk 0:00:06.5]} 39... Qd4 {[%clk 0:00:39]} 40. Qc3 {[%clk 0:00:06.8]} 40...
b2 {[%clk 0:00:34.8]} 41. Qxd4 {[%clk 0:00:06.8]} 41... a2+ {[%clk 0:00:32.3]}
42. Kc2 {[%clk 0:00:05.7]} 42... b1=Q+ {[%clk 0:00:30]} 0-1

[Event "Early-Titled-Tuesday-Blitz-January-16-2024"]
[Site "Chess.com"]
[Date "2024.01.16"]
[Round "9"]
[White "Actuary44"]
[Black "Rodalquilar"]
[Result "0-1"]
[WhiteElo "2493"]
[BlackElo "2761"]
[TimeControl "180+1"]
[EndTime "9:48:06 PST"]
[Termination "Rodalquilar won by resignation"]

1. e4 {[%clk 0:03:00.9]} 1... d5 {[%clk 0:02:08.2]} 2. exd5 {[%clk 0:02:58.7]}
2... Qxd5 {[%clk 0:02:09.1]} 3. Nc3 {[%clk 0:02:59]} 3... Qa5 {[%clk 0:02:09.4]}
4. Nf3 {[%clk 0:02:57.4]} 4... Nf6 {[%clk 0:02:09.9]} 5. d4 {[%clk 0:02:57.4]}
5... Bf5 {[%clk 0:02:10.1]} 6. Bd3 {[%clk 0:02:57.2]} 6... Nbd7 {[%clk
0:02:09.7]} 7. Bd2 {[%clk 0:02:55.3]} 7... Bxd3 {[%clk 0:02:09]} 8. cxd3 {[%clk
0:02:56.2]} 8... c6 {[%clk 0:02:04.7]} 9. O-O {[%clk 0:02:55]} 9... e6 {[%clk
0:02:04.4]} 10. Re1 {[%clk 0:02:44.8]} 10... Be7 {[%clk 0:02:02.4]} 11. Ne5
{[%clk 0:02:43.7]} 11... Qa6 {[%clk 0:01:54.2]} 12. Ne4 {[%clk 0:02:16.5]} 12...
Rd8 {[%clk 0:01:31.6]} 13. Bg5 {[%clk 0:01:56.1]} 13... Nxe5 {[%clk 0:01:04.3]}
14. dxe5 {[%clk 0:01:45.4]} 14... Rxd3 {[%clk 0:00:37]} 15. exf6 {[%clk
0:00:50.7]} 15... Rxd1 {[%clk 0:00:36.2]} 16. Raxd1 {[%clk 0:00:40.8]} 16...
gxf6 {[%clk 0:00:28.9]} 17. Nxf6+ {[%clk 0:00:40.4]} 17... Bxf6 {[%clk
0:00:28.9]} 18. Bxf6 {[%clk 0:00:41.3]} 18... O-O {[%clk 0:00:29.4]} 19. Re3
{[%clk 0:00:30.3]} 19... h5 {[%clk 0:00:29.5]} 20. Re5 {[%clk 0:00:12]} 20...
Kh7 {[%clk 0:00:26.3]} 21. Rd4 {[%clk 0:00:06.3]} 21... Qxa2 {[%clk 0:00:18.7]}
22. h4 {[%clk 0:00:04]} 22... Qb1+ {[%clk 0:00:19.2]} 23. Kh2 {[%clk 0:00:03.7]}
23... Qg6 {[%clk 0:00:16.8]} 24. Rf4 {[%clk 0:00:03.8]} 24... Rg8 {[%clk
0:00:15.3]} 25. Rg5 {[%clk 0:00:03]} 25... Qh6 {[%clk 0:00:15.9]} 26. Be5 {[%clk
0:00:02.7]} 26... Rxg5 {[%clk 0:00:15.1]} 27. hxg5 {[%clk 0:00:02.9]} 27... Qxg5
{[%clk 0:00:14.9]} 28. Rxf7+ {[%clk 0:00:03.8]} 28... Kg8 {[%clk 0:00:15.5]} 29.
Rg7+ {[%clk 0:00:03]} 29... Qxg7 {[%clk 0:00:15.9]} 30. Bxg7 {[%clk 0:00:03.9]}
30... Kxg7 {[%clk 0:00:16.7]} 31. Kg3 {[%clk 0:00:04.5]} 31... Kg6 {[%clk
0:00:17.3]} 32. Kf4 {[%clk 0:00:05]} 32... Kf6 {[%clk 0:00:17.8]} 33. g4 {[%clk
0:00:05.4]} 33... hxg4 {[%clk 0:00:18]} 34. Kxg4 {[%clk 0:00:06.3]} 34... c5
{[%clk 0:00:18.3]} 35. Kf4 {[%clk 0:00:07.2]} 35... b5 {[%clk 0:00:18.7]} 36.
Ke4 {[%clk 0:00:08]} 36... a5 {[%clk 0:00:19.2]} 37. Kd3 {[%clk 0:00:08.2]}
37... Ke5 {[%clk 0:00:19.1]} 38. Kc3 {[%clk 0:00:08.7]} 38... Kd5 {[%clk
0:00:18.4]} 39. Kd3 {[%clk 0:00:09.3]} 39... c4+ {[%clk 0:00:18.7]} 40. Kc3
{[%clk 0:00:09.6]} 40... b4+ {[%clk 0:00:19.3]} 41. Kd2 {[%clk 0:00:09.9]} 41...
a4 {[%clk 0:00:19.9]} 42. Ke3 {[%clk 0:00:10.4]} 42... c3 {[%clk 0:00:18.5]} 0-1

[Event "Early-Titled-Tuesday-Blitz-January-16-2024"]
[Site "Chess.com"]
[Date "2024.01.16"]
[Round "9"]
[White "HATilay"]
[Black "KNVB"]
[Result "0-1"]
[WhiteElo "2581"]
[BlackElo "2699"]
[TimeControl "180+1"]
[EndTime "9:48:07 PST"]
[Termination "KNVB won by resignation"]

1. d4 {[%clk 0:03:00.9]} 1... e5 {[%clk 0:02:58.8]} 2. dxe5 {[%clk 0:03:00.7]}
2... Nc6 {[%clk 0:02:59]} 3. Nf3 {[%clk 0:03:00.6]} 3... Qe7 {[%clk 0:02:59.2]}
4. g3 {[%clk 0:02:57.3]} 4... Nxe5 {[%clk 0:02:59.5]} 5. Bg2 {[%clk 0:02:57.9]}
5... Nxf3+ {[%clk 0:02:47.2]} 6. Bxf3 {[%clk 0:02:58.2]} 6... Nf6 {[%clk
0:02:43]} 7. O-O {[%clk 0:02:57]} 7... g6 {[%clk 0:02:42.9]} 8. Nc3 {[%clk
0:02:53.4]} 8... Bg7 {[%clk 0:02:40.1]} 9. Bg5 {[%clk 0:02:47.3]} 9... h6 {[%clk
0:02:29.3]} 10. Nd5 {[%clk 0:02:38.4]} 10... Qd8 {[%clk 0:02:29]} 11. Nxf6+
{[%clk 0:01:57.6]} 11... Bxf6 {[%clk 0:02:29.9]} 12. Bxf6 {[%clk 0:01:58.1]}
12... Qxf6 {[%clk 0:02:30.8]} 13. c3 {[%clk 0:01:58.7]} 13... O-O {[%clk
0:02:11.9]} 14. Qd2 {[%clk 0:01:33.7]} 14... Kg7 {[%clk 0:02:11.3]} 15. Rad1
{[%clk 0:01:33.7]} 15... d6 {[%clk 0:02:04.7]} 16. Rfe1 {[%clk 0:01:21]} 16...
Re8 {[%clk 0:01:56.5]} 17. Qd4 {[%clk 0:01:10.3]} 17... a5 {[%clk 0:01:24.2]}
18. Qxf6+ {[%clk 0:00:47.9]} 18... Kxf6 {[%clk 0:01:25.1]} 19. Rd4 {[%clk
0:00:44.7]} 19... Ra6 {[%clk 0:01:02.1]} 20. Red1 {[%clk 0:00:34.4]} 20... Rb6
{[%clk 0:01:00.8]} 21. R1d2 {[%clk 0:00:34.6]} 21... Re5 {[%clk 0:00:38.9]} 22.
Kg2 {[%clk 0:00:24.6]} 22... Be6 {[%clk 0:00:36.3]} 23. Ra4 {[%clk 0:00:21.6]}
23... Reb5 {[%clk 0:00:19.5]} 24. b3 {[%clk 0:00:20]} 24... Rc5 {[%clk
0:00:20.1]} 25. Rf4+ {[%clk 0:00:13.6]} 25... Ke7 {[%clk 0:00:16.8]} 26. c4
{[%clk 0:00:14.2]} 26... a4 {[%clk 0:00:11.7]} 27. Rd3 {[%clk 0:00:13.6]} 27...
g5 {[%clk 0:00:07.7]} 28. Re4 {[%clk 0:00:11.7]} 28... axb3 {[%clk 0:00:04.1]}
29. axb3 {[%clk 0:00:11.9]} 29... g4 {[%clk 0:00:03.2]} 30. Rxg4 {[%clk
0:00:10.5]} 30... Bxg4 {[%clk 0:00:03.4]} 31. Bxg4 {[%clk 0:00:11.4]} 31... Ra5
{[%clk 0:00:02.5]} 32. Re3+ {[%clk 0:00:08]} 32... Kf8 {[%clk 0:00:01.8]} 33.
Bf5 {[%clk 0:00:08.3]} 33... Rxf5 {[%clk 0:00:01.6]} 0-1